[Event "Titled Tuesday Blitz May 30 Late 2023"]
[White "Kovalevsky, Stanislav"]
[Black "Horokoskii"]
[WhiteFideId "13508598"]
[WhiteElo "2174"]
[BlackElo "2138"]
[Result "1-0"]
[Round "02"]
[TimeControl "180+2"]
[Date "2023.05.31"]
[WhiteClock "0:00:14"]
[BlackClock "0:00:04"]

1. c4 {[%clk 0:03:00]}  Nf6 {[%clk 0:02:58]} 2. Nc3 {[%clk 0:03:01]}  g6 {[%clk 0:02:58]} 3. g3 {[%clk 0:03:02]}  Bg7 {[%clk 0:02:58]} 4. Bg2 {[%clk 0:03:02]}  O-O {[%clk 0:02:59]} 5. b4 {[%clk 0:03:02]}  d6 {[%clk 0:02:56]} 6. Bb2 {[%clk 0:03:03]}  a5 {[%clk 0:02:54]} 7. b5 {[%clk 0:03:02]}  c6 {[%clk 0:02:51]} 8. Nf3 {[%clk 0:02:59]}  Qc7 {[%clk 0:02:46]} 9. d3 {[%clk 0:02:55]}  Bg4 {[%clk 0:02:46]} 10. O-O {[%clk 0:02:53]}  Nbd7 {[%clk 0:02:45]} 11. h3 {[%clk 0:02:53]}  Bxf3 {[%clk 0:02:44]} 12. Bxf3 {[%clk 0:02:53]}  Ne5 {[%clk 0:02:41]} 13. Bg2 {[%clk 0:02:52]}  h5 {[%clk 0:02:38]} 14. Rb1 {[%clk 0:02:50]}  h4 {[%clk 0:02:34]} 15. g4 {[%clk 0:02:46]}  Qc8 {[%clk 0:02:31]} 16. e3 {[%clk 0:02:36]}  Rd8 {[%clk 0:02:24]} 17. f4 {[%clk 0:02:33]}  Ned7 {[%clk 0:02:22]} 18. g5 {[%clk 0:02:28]}  Nh5 {[%clk 0:02:00]} 19. Qf3 {[%clk 0:02:28]}  Ng3 {[%clk 0:01:59]} 20. Rfc1 {[%clk 0:02:25]}  Nc5 {[%clk 0:01:59]} 21. d4 {[%clk 0:02:18]}  Nd3 {[%clk 0:01:57]} 22. Rc2 {[%clk 0:02:08]}  Nxb2 {[%clk 0:01:56]} 23. Rbxb2 {[%clk 0:02:07]}  cxb5 {[%clk 0:01:34]} 24. Nd5 {[%clk 0:01:47]}  Qe6 {[%clk 0:01:29]} 25. Nc7 {[%clk 0:01:43]}  Qf5 {[%clk 0:01:14]} 26. Nxa8 {[%clk 0:01:41]}  Rxa8 {[%clk 0:01:15]} 27. Qxb7 {[%clk 0:01:33]}  Rc8 {[%clk 0:01:08]} 28. Qd5 {[%clk 0:01:18]}  Qd3 {[%clk 0:01:00]} 29. Qf3 {[%clk 0:00:58]}  bxc4 {[%clk 0:00:56]} 30. Rc1 {[%clk 0:00:47]}  c3 {[%clk 0:00:50]} 31. Rbc2 {[%clk 0:00:47]}  e5 {[%clk 0:00:48]} 32. dxe5 {[%clk 0:00:32]}  dxe5 {[%clk 0:00:48]} 33. Bf1 {[%clk 0:00:30]}  Qd6 {[%clk 0:00:36]} 34. Qg4 {[%clk 0:00:21]}  Rd8 {[%clk 0:00:30]} 35. Qxh4 {[%clk 0:00:19]}  exf4 {[%clk 0:00:29]} 36. Qxf4 {[%clk 0:00:18]}  Be5 {[%clk 0:00:27]} 37. Qf2 {[%clk 0:00:18]}  Ne4 {[%clk 0:00:26]} 38. Qg2 {[%clk 0:00:18]}  Ng3 {[%clk 0:00:16]} 39. Bb5 {[%clk 0:00:17]}  Nf5 {[%clk 0:00:15]} 40. Qe4 {[%clk 0:00:15]}  Bg7 {[%clk 0:00:11]} 41. Bc4 {[%clk 0:00:15]}  Qg3+ {[%clk 0:00:10]} 42. Rg2 {[%clk 0:00:15]}  Qxe3+ {[%clk 0:00:09]} 43. Qxe3 {[%clk 0:00:15]}  Nxe3 {[%clk 0:00:10]} 44. Bb3 {[%clk 0:00:14]}  Nxg2 {[%clk 0:00:10]} 45. Kxg2 {[%clk 0:00:15]}  Rd2+ {[%clk 0:00:10]} 46. Kg3 {[%clk 0:00:14]}  Be5+ {[%clk 0:00:09]} 47. Kf3 {[%clk 0:00:14]}  Kg7 {[%clk 0:00:09]} 48. Ke4 {[%clk 0:00:14]}  Bg3 {[%clk 0:00:08]} 49. Rxc3 {[%clk 0:00:14]}  Rh2 {[%clk 0:00:07]} 50. Rxg3 {[%clk 0:00:14]}  Re2+ {[%clk 0:00:06]} 51. Kd3 {[%clk 0:00:14]}  Re7 {[%clk 0:00:06]} 52. Rf3 {[%clk 0:00:14]}  Rd7+ {[%clk 0:00:06]} 53. Kc3 {[%clk 0:00:14]}  Rc7+ {[%clk 0:00:06]} 54. Kd4 {[%clk 0:00:15]}  Rb7 {[%clk 0:00:06]} 55. Kc5 {[%clk 0:00:15]}  Rb4 {[%clk 0:00:06]} 56. Rxf7+ {[%clk 0:00:14]}  Kg8 {[%clk 0:00:04]} 57. Rb7+ {[%clk 0:00:14]} 1-0


[Site "https://www.chess.com"]

[Event "Titled Tuesday Blitz May 30 Late 2023"]
[White "Hartikainen, Jarmo"]
[Black "Hajiyev, Kanan"]
[WhiteFideId "503134"]
[BlackFideId "13404148"]
[WhiteElo "2103"]
[BlackElo "2103"]
[Result "0-1"]
[Round "02"]
[TimeControl "180+2"]
[Date "2023.05.31"]
[WhiteClock "0:00:18"]
[BlackClock "0:01:55"]

1. e4 {[%clk 0:03:00]}  c6 {[%clk 0:02:44]} 2. d4 {[%clk 0:03:00]}  d5 {[%clk 0:02:45]} 3. Nc3 {[%clk 0:03:00]}  a6 {[%clk 0:02:45]} 4. Nf3 {[%clk 0:02:49]}  Bg4 {[%clk 0:02:44]} 5. Be2 {[%clk 0:02:44]}  e6 {[%clk 0:02:42]} 6. O-O {[%clk 0:02:33]}  Nf6 {[%clk 0:02:41]} 7. e5 {[%clk 0:02:28]}  Nfd7 {[%clk 0:02:41]} 8. Nb1 {[%clk 0:02:27]}  c5 {[%clk 0:02:40]} 9. c3 {[%clk 0:02:27]}  Nc6 {[%clk 0:02:41]} 10. Be3 {[%clk 0:02:24]}  Qb6 {[%clk 0:02:41]} 11. b3 {[%clk 0:02:16]}  Be7 {[%clk 0:02:37]} 12. Nbd2 {[%clk 0:02:15]}  cxd4 {[%clk 0:02:37]} 13. cxd4 {[%clk 0:02:13]}  Rc8 {[%clk 0:02:37]} 14. a3 {[%clk 0:01:46]}  Na5 {[%clk 0:02:31]} 15. b4 {[%clk 0:01:44]}  Nc4 {[%clk 0:02:28]} 16. Nxc4 {[%clk 0:01:42]}  dxc4 {[%clk 0:02:29]} 17. Rc1 {[%clk 0:01:36]}  Qb5 {[%clk 0:02:26]} 18. a4 {[%clk 0:00:48]}  Qd5 {[%clk 0:02:24]} 19. b5 {[%clk 0:00:35]}  axb5 {[%clk 0:02:22]} 20. axb5 {[%clk 0:00:35]}  O-O {[%clk 0:02:16]} 21. Qc2 {[%clk 0:00:32]}  Bf5 {[%clk 0:02:08]} 22. Qc3 {[%clk 0:00:32]}  Nb6 {[%clk 0:02:07]} 23. Nd2 {[%clk 0:00:26]}  Qxb5 {[%clk 0:02:03]} 24. Rb1 {[%clk 0:00:18]}  Qc6 {[%clk 0:01:58]} 25. Rfc1 {[%clk 0:00:18]}  Bxb1 {[%clk 0:01:55]} 26. Rxb1 {[%clk 0:00:18]}  Nd5 {[%clk 0:01:55]} 0-1


[Site "https://www.chess.com"]

[Event "Titled Tuesday Blitz May 30 Late 2023"]
[White "Skaric, Djuro"]
[Black "deloewre"]
[WhiteFideId "934569"]
[WhiteElo "2282"]
[BlackElo "2100"]
[Result "1-0"]
[Round "02"]
[TimeControl "180+2"]
[Date "2023.05.31"]
[WhiteClock "0:01:28"]
[BlackClock "0:00:03"]

1. g3 {[%clk 0:03:00]}  d5 {[%clk 0:02:58]} 2. Bg2 {[%clk 0:03:00]}  e5 {[%clk 0:02:57]} 3. d3 {[%clk 0:03:00]}  Nc6 {[%clk 0:02:55]} 4. Nf3 {[%clk 0:03:01]}  g6 {[%clk 0:02:54]} 5. O-O {[%clk 0:03:01]}  Bg7 {[%clk 0:02:53]} 6. h3 {[%clk 0:03:01]}  Nge7 {[%clk 0:02:51]} 7. Nc3 {[%clk 0:03:02]}  O-O {[%clk 0:02:49]} 8. e4 {[%clk 0:03:02]}  dxe4 {[%clk 0:02:44]} 9. dxe4 {[%clk 0:03:01]}  Qxd1 {[%clk 0:02:39]} 10. Rxd1 {[%clk 0:03:01]}  h6 {[%clk 0:02:28]} 11. Be3 {[%clk 0:03:00]}  Be6 {[%clk 0:02:21]} 12. a3 {[%clk 0:02:59]}  a6 {[%clk 0:02:14]} 13. Rd2 {[%clk 0:02:59]}  Rad8 {[%clk 0:02:12]} 14. Rad1 {[%clk 0:02:59]}  Rxd2 {[%clk 0:02:09]} 15. Rxd2 {[%clk 0:02:59]}  Rd8 {[%clk 0:01:52]} 16. Rxd8+ {[%clk 0:02:40]}  Nxd8 {[%clk 0:01:50]} 17. Bf1 {[%clk 0:02:40]}  Ndc6 {[%clk 0:01:48]} 18. Na4 {[%clk 0:02:34]}  Nd4 {[%clk 0:01:40]} 19. Ne1 {[%clk 0:02:23]}  Bc8 {[%clk 0:01:31]} 20. Nc5 {[%clk 0:02:21]}  Ne6 {[%clk 0:01:26]} 21. c3 {[%clk 0:02:16]}  Nxc5 {[%clk 0:01:25]} 22. Bxc5 {[%clk 0:02:16]}  Nc6 {[%clk 0:01:23]} 23. Kg2 {[%clk 0:02:15]}  b6 {[%clk 0:01:22]} 24. Be3 {[%clk 0:02:14]}  Bf8 {[%clk 0:01:18]} 25. Nd3 {[%clk 0:02:13]}  Kg7 {[%clk 0:01:11]} 26. Be2 {[%clk 0:02:13]}  Bd6 {[%clk 0:01:09]} 27. f4 {[%clk 0:02:13]}  f6 {[%clk 0:01:03]} 28. g4 {[%clk 0:02:12]}  exf4 {[%clk 0:01:01]} 29. Nxf4 {[%clk 0:02:12]}  Bxf4 {[%clk 0:00:56]} 30. Bxf4 {[%clk 0:02:12]}  Ne5 {[%clk 0:00:56]} 31. Kf2 {[%clk 0:02:09]}  a5 {[%clk 0:00:52]} 32. Ke3 {[%clk 0:02:09]}  Be6 {[%clk 0:00:49]} 33. Kd4 {[%clk 0:02:08]}  Nc6+ {[%clk 0:00:44]} 34. Ke3 {[%clk 0:02:08]}  Ne5 {[%clk 0:00:44]} 35. b4 {[%clk 0:02:03]}  axb4 {[%clk 0:00:41]} 36. cxb4 {[%clk 0:02:01]}  c6 {[%clk 0:00:38]} 37. Kd4 {[%clk 0:02:00]}  Nd7 {[%clk 0:00:33]} 38. a4 {[%clk 0:01:59]}  c5+ {[%clk 0:00:30]} 39. bxc5 {[%clk 0:01:58]}  Nxc5 {[%clk 0:00:27]} 40. Bd1 {[%clk 0:01:53]}  Bd7 {[%clk 0:00:22]} 41. a5 {[%clk 0:01:50]}  Ne6+ {[%clk 0:00:21]} 42. Ke3 {[%clk 0:01:49]}  Nxf4 {[%clk 0:00:20]} 43. axb6 {[%clk 0:01:45]}  Bc6 {[%clk 0:00:17]} 44. Kxf4 {[%clk 0:01:45]}  Kf7 {[%clk 0:00:16]} 45. Bb3+ {[%clk 0:01:42]}  Ke7 {[%clk 0:00:15]} 46. Bd5 {[%clk 0:01:42]}  Bxd5 {[%clk 0:00:13]} 47. exd5 {[%clk 0:01:42]}  Kd6 {[%clk 0:00:12]} 48. h4 {[%clk 0:01:42]}  h5 {[%clk 0:00:08]} 49. gxh5 {[%clk 0:01:29]}  gxh5 {[%clk 0:00:06]} 50. Kf5 {[%clk 0:01:28]}  Kxd5 {[%clk 0:00:03]} 51. b7 {[%clk 0:01:28]} 1-0


[Site "https://www.chess.com"]

[Event "Titled Tuesday Blitz May 30 Late 2023"]
[White "Tarasova, Viktoriya"]
[Black "Ricaurte Lopez, Juan Carlos"]
[WhiteFideId "4175840"]
[BlackFideId "3600327"]
[WhiteElo "2182"]
[BlackElo "2200"]
[Result "1-0"]
[Round "02"]
[TimeControl "180+2"]
[Date "2023.05.31"]
[WhiteClock "0:00:17"]
[BlackClock "0:00:04"]

1. d4 {[%clk 0:02:45]}  d5 {[%clk 0:02:57]} 2. c4 {[%clk 0:02:45]}  c6 {[%clk 0:02:53]} 3. Nf3 {[%clk 0:02:42]}  e6 {[%clk 0:02:49]} 4. Nc3 {[%clk 0:02:38]}  f5 {[%clk 0:02:48]} 5. e3 {[%clk 0:02:33]}  Nf6 {[%clk 0:02:47]} 6. Bd3 {[%clk 0:02:34]}  Bb4 {[%clk 0:02:44]} 7. O-O {[%clk 0:02:34]}  O-O {[%clk 0:02:41]} 8. Qc2 {[%clk 0:02:33]}  Ne4 {[%clk 0:02:34]} 9. Ne2 {[%clk 0:02:32]}  Bd6 {[%clk 0:02:28]} 10. b3 {[%clk 0:02:32]}  Nd7 {[%clk 0:02:21]} 11. Bb2 {[%clk 0:02:31]}  Qf6 {[%clk 0:02:16]} 12. Rac1 {[%clk 0:02:28]}  g5 {[%clk 0:02:13]} 13. Ne1 {[%clk 0:02:27]}  g4 {[%clk 0:02:11]} 14. Nf4 {[%clk 0:02:09]}  Qh6 {[%clk 0:02:03]} 15. f3 {[%clk 0:02:01]}  gxf3 {[%clk 0:01:19]} 16. gxf3 {[%clk 0:02:00]}  Ng5 {[%clk 0:01:10]} 17. Neg2 {[%clk 0:01:52]}  Nf6 {[%clk 0:00:53]} 18. Kh1 {[%clk 0:01:51]}  Kh8 {[%clk 0:00:49]} 19. Be2 {[%clk 0:01:17]}  Bd7 {[%clk 0:00:45]} 20. Bc3 {[%clk 0:01:04]}  Rg8 {[%clk 0:00:42]} 21. Rg1 {[%clk 0:00:58]}  Nh5 {[%clk 0:00:34]} 22. Be1 {[%clk 0:00:22]}  Nxf4 {[%clk 0:00:18]} 23. Nxf4 {[%clk 0:00:20]}  Bxf4 {[%clk 0:00:16]} 24. exf4 {[%clk 0:00:20]}  Nh3 {[%clk 0:00:15]} 25. Bg3 {[%clk 0:00:19]}  Rg6 {[%clk 0:00:07]} 26. Qd2 {[%clk 0:00:18]}  Rag8 {[%clk 0:00:06]} 27. Qe3 {[%clk 0:00:18]}  Rxg3 {[%clk 0:00:04]} 28. Qe5+ {[%clk 0:00:17]} 1-0


[Site "https://www.chess.com"]

[Event "Titled Tuesday Blitz May 30 Late 2023"]
[White "dorpato"]
[Black "Papayan, Oleg"]
[BlackFideId "4193911"]
[WhiteElo "2056"]
[BlackElo "2171"]
[Result "0-1"]
[Round "02"]
[TimeControl "180+2"]
[Date "2023.05.31"]
[WhiteClock "0:00:01"]
[BlackClock "0:01:24"]

1. e4 {[%clk 0:02:58]}  e5 {[%clk 0:02:59]} 2. Nf3 {[%clk 0:02:57]}  Nc6 {[%clk 0:03:00]} 3. d4 {[%clk 0:02:57]}  exd4 {[%clk 0:03:00]} 4. c3 {[%clk 0:02:57]}  dxc3 {[%clk 0:02:54]} 5. Nxc3 {[%clk 0:02:58]}  Bc5 {[%clk 0:02:54]} 6. Bc4 {[%clk 0:02:58]}  d6 {[%clk 0:02:51]} 7. Qb3 {[%clk 0:02:49]}  Qd7 {[%clk 0:02:51]} 8. O-O {[%clk 0:01:09]}  Na5 {[%clk 0:02:46]} 9. Qb5 {[%clk 0:01:05]}  Nxc4 {[%clk 0:02:42]} 10. Qxc4 {[%clk 0:01:05]}  Ne7 {[%clk 0:02:31]} 11. e5 {[%clk 0:01:03]}  O-O {[%clk 0:02:29]} 12. exd6 {[%clk 0:00:43]}  Bxd6 {[%clk 0:02:25]} 13. Bg5 {[%clk 0:00:41]}  Qg4 {[%clk 0:02:14]} 14. Qd3 {[%clk 0:00:21]}  Bf5 {[%clk 0:02:09]} 15. Qe3 {[%clk 0:00:19]}  Rfe8 {[%clk 0:02:02]} 16. Rfe1 {[%clk 0:00:18]}  h6 {[%clk 0:01:49]} 17. h3 {[%clk 0:00:14]}  Qb4 {[%clk 0:01:41]} 18. Bh4 {[%clk 0:00:11]}  Qxb2 {[%clk 0:01:40]} 19. Nd4 {[%clk 0:00:08]}  Bg6 {[%clk 0:01:34]} 20. Bxe7 {[%clk 0:00:08]}  Rxe7 {[%clk 0:01:33]} 21. Qf3 {[%clk 0:00:06]}  Rae8 {[%clk 0:01:26]} 22. Reb1 {[%clk 0:00:02]}  Bxb1 {[%clk 0:01:25]} 23. Rxb1 {[%clk 0:00:02]}  Qd2 {[%clk 0:01:26]} 24. Rxb7 {[%clk 0:00:01]}  Re1# {[%clk 0:01:24]} 0-1


[Site "https://www.chess.com"]

[Event "Titled Tuesday Blitz May 30 Late 2023"]
[White "Manu_ChessExcelsior"]
[Black "Prydun, Andriy"]
[BlackFideId "14145898"]
[WhiteElo "2042"]
[BlackElo "2164"]
[Result "1/2-1/2"]
[Round "02"]
[TimeControl "180+2"]
[Date "2023.05.31"]
[WhiteClock "0:00:21"]
[BlackClock "0:01:22"]

1. e4 {[%clk 0:03:00]}  c5 {[%clk 0:02:56]} 2. Nf3 {[%clk 0:02:59]}  d6 {[%clk 0:02:46]} 3. Bb5+ {[%clk 0:02:56]}  Bd7 {[%clk 0:02:44]} 4. Bxd7+ {[%clk 0:02:55]}  Qxd7 {[%clk 0:02:45]} 5. O-O {[%clk 0:02:55]}  Nc6 {[%clk 0:02:44]} 6. Re1 {[%clk 0:02:56]}  g6 {[%clk 0:02:44]} 7. c3 {[%clk 0:02:56]}  d5 {[%clk 0:02:41]} 8. d4 {[%clk 0:02:57]}  cxd4 {[%clk 0:02:40]} 9. exd5 {[%clk 0:02:53]}  Qxd5 {[%clk 0:02:39]} 10. cxd4 {[%clk 0:02:50]}  Bg7 {[%clk 0:02:36]} 11. Nc3 {[%clk 0:02:49]}  Qd7 {[%clk 0:02:32]} 12. d5 {[%clk 0:02:35]}  Nd8 {[%clk 0:02:25]} 13. d6 {[%clk 0:02:22]}  Ne6 {[%clk 0:02:24]} 14. dxe7 {[%clk 0:02:06]}  Qxd1 {[%clk 0:02:19]} 15. Rxd1 {[%clk 0:02:05]}  Nxe7 {[%clk 0:02:19]} 16. Be3 {[%clk 0:01:48]}  Nf5 {[%clk 0:02:07]} 17. Re1 {[%clk 0:01:43]}  Nxe3 {[%clk 0:02:06]} 18. Rxe3 {[%clk 0:01:42]}  O-O {[%clk 0:02:06]} 19. Rd1 {[%clk 0:01:39]}  Rfd8 {[%clk 0:02:04]} 20. Red3 {[%clk 0:01:39]}  Rxd3 {[%clk 0:02:04]} 21. Rxd3 {[%clk 0:01:39]}  Rd8 {[%clk 0:02:03]} 22. Rxd8+ {[%clk 0:01:36]}  Nxd8 {[%clk 0:02:04]} 23. Kf1 {[%clk 0:01:35]}  Nc6 {[%clk 0:02:00]} 24. Ke2 {[%clk 0:01:33]}  f5 {[%clk 0:02:00]} 25. a3 {[%clk 0:01:12]}  h6 {[%clk 0:01:56]} 26. Kd3 {[%clk 0:01:11]}  Kf7 {[%clk 0:01:56]} 27. b4 {[%clk 0:01:06]}  g5 {[%clk 0:01:55]} 28. b5 {[%clk 0:00:52]}  Ne5+ {[%clk 0:01:53]} 29. Nxe5+ {[%clk 0:00:51]}  Bxe5 {[%clk 0:01:54]} 30. g3 {[%clk 0:00:47]}  Ke6 {[%clk 0:01:52]} 31. a4 {[%clk 0:00:38]}  Bxc3 {[%clk 0:01:49]} 32. Kxc3 {[%clk 0:00:38]}  Kd5 {[%clk 0:01:49]} 33. Kd3 {[%clk 0:00:33]}  h5 {[%clk 0:01:44]} 34. h4 {[%clk 0:00:26]}  gxh4 {[%clk 0:01:42]} 35. gxh4 {[%clk 0:00:27]}  Ke5 {[%clk 0:01:37]} 36. Ke3 {[%clk 0:00:26]}  f4+ {[%clk 0:01:34]} 37. Kd3 {[%clk 0:00:22]}  Kd5 {[%clk 0:01:31]} 38. f3 {[%clk 0:00:20]}  b6 {[%clk 0:01:22]} 39. Kc3 {[%clk 0:00:20]}  Kc5 {[%clk 0:01:22]} 40. Kd3 {[%clk 0:00:20]}  Kd5 {[%clk 0:01:22]} 41. Kc3 {[%clk 0:00:20]}  Kc5 {[%clk 0:01:22]} 42. Kd3 {[%clk 0:00:21]}  Kd5 {[%clk 0:01:22]} 1/2-1/2


[Site "https://www.chess.com"]

[Event "Titled Tuesday Blitz May 30 Late 2023"]
[White "ThaBarWa"]
[Black "Burke, Paul"]
[BlackFideId "2605767"]
[WhiteElo "2400"]
[BlackElo "1904"]
[Result "1-0"]
[Round "02"]
[TimeControl "180+2"]
[Date "2023.05.31"]
[WhiteClock "0:00:30"]
[BlackClock "0:00:19"]

1. d4 {[%clk 0:03:00]}  a6 {[%clk 0:02:45]} 2. c4 {[%clk 0:03:00]}  d6 {[%clk 0:02:43]} 3. Nc3 {[%clk 0:03:00]}  g6 {[%clk 0:02:44]} 4. e4 {[%clk 0:02:58]}  h6 {[%clk 0:02:43]} 5. f3 {[%clk 0:02:55]}  Nd7 {[%clk 0:02:43]} 6. Be3 {[%clk 0:02:54]}  Bg7 {[%clk 0:02:42]} 7. Qd2 {[%clk 0:02:52]}  e5 {[%clk 0:02:42]} 8. d5 {[%clk 0:02:50]}  Ne7 {[%clk 0:02:41]} 9. Bd3 {[%clk 0:02:50]}  f5 {[%clk 0:02:41]} 10. Nge2 {[%clk 0:02:51]}  f4 {[%clk 0:02:36]} 11. Bf2 {[%clk 0:02:50]}  O-O {[%clk 0:02:35]} 12. O-O-O {[%clk 0:02:46]}  Nf6 {[%clk 0:02:32]} 13. Kb1 {[%clk 0:02:41]}  Bd7 {[%clk 0:02:31]} 14. Nc1 {[%clk 0:02:27]}  Rb8 {[%clk 0:02:31]} 15. Bc2 {[%clk 0:02:19]}  b5 {[%clk 0:02:29]} 16. c5 {[%clk 0:02:20]}  b4 {[%clk 0:02:22]} 17. Na4 {[%clk 0:02:12]}  Bxa4 {[%clk 0:02:12]} 18. Bxa4 {[%clk 0:02:13]}  a5 {[%clk 0:02:10]} 19. Nb3 {[%clk 0:01:59]}  Ra8 {[%clk 0:02:00]} 20. Rc1 {[%clk 0:01:54]}  Kh7 {[%clk 0:01:44]} 21. Qc2 {[%clk 0:01:39]}  Nexd5 {[%clk 0:01:33]} 22. exd5 {[%clk 0:01:37]}  Nxd5 {[%clk 0:01:32]} 23. cxd6 {[%clk 0:01:32]}  cxd6 {[%clk 0:01:25]} 24. Rhd1 {[%clk 0:01:05]}  Ne3 {[%clk 0:01:20]} 25. Bxe3 {[%clk 0:01:02]}  fxe3 {[%clk 0:01:20]} 26. Qe4 {[%clk 0:00:55]}  Qg5 {[%clk 0:01:12]} 27. g3 {[%clk 0:00:49]}  d5 {[%clk 0:00:42]} 28. Rxd5 {[%clk 0:00:48]}  Qh5 {[%clk 0:00:24]} 29. Rd7 {[%clk 0:00:41]}  Qxf3 {[%clk 0:00:20]} 30. Qxf3 {[%clk 0:00:37]}  Rxf3 {[%clk 0:00:19]} 31. Bc6 {[%clk 0:00:30]} 1-0


[Site "https://www.chess.com"]

[Event "Titled Tuesday Blitz May 30 Late 2023"]
[White "Castillo Pena, Patricia Evarista"]
[Black "Pein, Jonathan"]
[WhiteFideId "6412106"]
[BlackFideId "417092"]
[WhiteElo "1919"]
[BlackElo "2151"]
[Result "0-1"]
[Round "02"]
[TimeControl "180+2"]
[Date "2023.05.31"]
[WhiteClock "0:00:13"]
[BlackClock "0:02:06"]

1. d4 {[%clk 0:02:48]}  d5 {[%clk 0:02:55]} 2. Nf3 {[%clk 0:02:37]}  c6 {[%clk 0:02:53]} 3. e3 {[%clk 0:02:35]}  g6 {[%clk 0:02:52]} 4. Be2 {[%clk 0:02:34]}  Bg7 {[%clk 0:02:52]} 5. O-O {[%clk 0:02:34]}  Nf6 {[%clk 0:02:53]} 6. b3 {[%clk 0:02:33]}  O-O {[%clk 0:02:53]} 7. Bb2 {[%clk 0:02:34]}  a5 {[%clk 0:02:53]} 8. Nbd2 {[%clk 0:02:33]}  a4 {[%clk 0:02:53]} 9. a3 {[%clk 0:02:23]}  axb3 {[%clk 0:02:51]} 10. cxb3 {[%clk 0:02:12]}  Bg4 {[%clk 0:02:51]} 11. h3 {[%clk 0:02:11]}  Bxf3 {[%clk 0:02:51]} 12. Nxf3 {[%clk 0:02:12]}  Nbd7 {[%clk 0:02:52]} 13. Ne5 {[%clk 0:02:10]}  Ne4 {[%clk 0:02:51]} 14. f4 {[%clk 0:02:08]}  f6 {[%clk 0:02:44]} 15. Nf3 {[%clk 0:02:03]}  Ng3 {[%clk 0:02:41]} 16. Rf2 {[%clk 0:01:59]}  Ne4 {[%clk 0:02:38]} 17. Rf1 {[%clk 0:01:31]}  Ng3 {[%clk 0:02:33]} 18. Rf2 {[%clk 0:01:31]}  Qc7 {[%clk 0:02:27]} 19. Rc1 {[%clk 0:01:11]}  e5 {[%clk 0:02:26]} 20. fxe5 {[%clk 0:00:59]}  fxe5 {[%clk 0:02:26]} 21. dxe5 {[%clk 0:00:57]}  Nxe5 {[%clk 0:02:23]} 22. Nxe5 {[%clk 0:00:56]}  Bxe5 {[%clk 0:02:24]} 23. Bxe5 {[%clk 0:00:54]}  Qxe5 {[%clk 0:02:25]} 24. Qd3 {[%clk 0:00:38]}  Rxf2 {[%clk 0:02:10]} 25. Kxf2 {[%clk 0:00:32]}  Rxa3 {[%clk 0:02:09]} 26. Qd4 {[%clk 0:00:18]}  Qxd4 {[%clk 0:02:05]} 27. exd4 {[%clk 0:00:13]}  Nxe2 {[%clk 0:02:05]} 28. Kxe2 {[%clk 0:00:13]}  Rxb3 {[%clk 0:02:06]} 0-1


[Site "https://www.chess.com"]

[Event "Titled Tuesday Blitz May 30 Late 2023"]
[White "Naroditsky, Daniel"]
[Black "Klukin, Kirill"]
[WhiteFideId "2026961"]
[BlackFideId "24199273"]
[WhiteElo "2633"]
[BlackElo "2344"]
[Result "1-0"]
[Round "03"]
[TimeControl "180+2"]
[Date "2023.05.31"]
[WhiteClock "0:01:30"]
[BlackClock "0:01:53"]

1. e4 {[%clk 0:03:00]}  c5 {[%clk 0:02:59]} 2. Nf3 {[%clk 0:03:00]}  Nc6 {[%clk 0:02:59]} 3. Bb5 {[%clk 0:03:00]}  g6 {[%clk 0:02:59]} 4. O-O {[%clk 0:03:00]}  Bg7 {[%clk 0:02:59]} 5. c3 {[%clk 0:03:00]}  Nf6 {[%clk 0:02:58]} 6. e5 {[%clk 0:02:58]}  Nd5 {[%clk 0:02:59]} 7. d4 {[%clk 0:02:59]}  cxd4 {[%clk 0:02:59]} 8. cxd4 {[%clk 0:03:00]}  O-O {[%clk 0:02:57]} 9. Nc3 {[%clk 0:03:01]}  Nxc3 {[%clk 0:02:54]} 10. bxc3 {[%clk 0:03:02]}  d6 {[%clk 0:02:55]} 11. exd6 {[%clk 0:03:02]}  Qxd6 {[%clk 0:02:56]} 12. Re1 {[%clk 0:03:02]}  a6 {[%clk 0:02:44]} 13. Bd3 {[%clk 0:02:57]}  e5 {[%clk 0:02:33]} 14. a4 {[%clk 0:02:57]}  Rd8 {[%clk 0:02:27]} 15. Ba3 {[%clk 0:02:55]}  Qc7 {[%clk 0:02:20]} 16. Rc1 {[%clk 0:02:25]}  Bg4 {[%clk 0:02:17]} 17. h3 {[%clk 0:02:25]}  Bxf3 {[%clk 0:02:14]} 18. Qxf3 {[%clk 0:02:26]}  exd4 {[%clk 0:02:15]} 19. cxd4 {[%clk 0:02:26]}  Nxd4 {[%clk 0:02:10]} 20. Qe4 {[%clk 0:02:03]}  Qd7 {[%clk 0:02:06]} 21. Bc4 {[%clk 0:01:35]}  b5 {[%clk 0:01:53]} 22. Ba2 {[%clk 0:01:30]} 1-0


[Site "https://www.chess.com"]

[Event "Titled Tuesday Blitz May 30 Late 2023"]
[White "Bluebaum, Matthias"]
[Black "Panesar Vedant"]
[WhiteFideId "24651516"]
[BlackFideId "35033018"]
[WhiteElo "2639"]
[BlackElo "2347"]
[Result "1-0"]
[Round "03"]
[TimeControl "180+2"]
[Date "2023.05.31"]
[WhiteClock "0:02:07"]
[BlackClock "0:00:31"]

1. d4 {[%clk 0:03:00]}  Nf6 {[%clk 0:02:58]} 2. c4 {[%clk 0:03:01]}  g6 {[%clk 0:02:58]} 3. Nc3 {[%clk 0:03:02]}  Bg7 {[%clk 0:02:58]} 4. e4 {[%clk 0:03:02]}  d6 {[%clk 0:02:59]} 5. Nf3 {[%clk 0:03:03]}  O-O {[%clk 0:02:59]} 6. Be2 {[%clk 0:03:03]}  e5 {[%clk 0:02:59]} 7. Be3 {[%clk 0:03:04]}  Ng4 {[%clk 0:02:59]} 8. Bg5 {[%clk 0:03:04]}  f6 {[%clk 0:03:00]} 9. Bh4 {[%clk 0:03:05]}  Nc6 {[%clk 0:02:58]} 10. d5 {[%clk 0:03:05]}  Ne7 {[%clk 0:02:59]} 11. Nd2 {[%clk 0:03:04]}  Nh6 {[%clk 0:02:59]} 12. f3 {[%clk 0:03:04]}  c5 {[%clk 0:02:58]} 13. dxc6 {[%clk 0:03:04]}  bxc6 {[%clk 0:02:58]} 14. b4 {[%clk 0:03:05]}  Be6 {[%clk 0:02:57]} 15. Bf2 {[%clk 0:03:02]}  Kh8 {[%clk 0:02:53]} 16. O-O {[%clk 0:03:03]}  g5 {[%clk 0:02:46]} 17. b5 {[%clk 0:03:00]}  cxb5 {[%clk 0:02:39]} 18. Nxb5 {[%clk 0:03:01]}  a6 {[%clk 0:02:35]} 19. Nc3 {[%clk 0:03:02]}  f5 {[%clk 0:02:31]} 20. Nb3 {[%clk 0:02:58]}  Ng6 {[%clk 0:02:18]} 21. c5 {[%clk 0:02:49]}  Nf7 {[%clk 0:02:02]} 22. cxd6 {[%clk 0:02:45]}  Qxd6 {[%clk 0:01:57]} 23. Nc5 {[%clk 0:02:41]}  Bc8 {[%clk 0:01:39]} 24. Qxd6 {[%clk 0:02:39]}  Nxd6 {[%clk 0:01:40]} 25. Rfd1 {[%clk 0:02:40]}  Nb7 {[%clk 0:01:29]} 26. Nd7 {[%clk 0:02:40]}  Rf7 {[%clk 0:01:09]} 27. Nb6 {[%clk 0:02:36]}  Rb8 {[%clk 0:01:10]} 28. Bc4 {[%clk 0:02:28]}  Rf8 {[%clk 0:00:57]} 29. Bxa6 {[%clk 0:02:20]}  Nf4 {[%clk 0:00:55]} 30. Nxc8 {[%clk 0:02:08]}  Rfxc8 {[%clk 0:00:54]} 31. Nd5 {[%clk 0:02:08]}  fxe4 {[%clk 0:00:52]} 32. fxe4 {[%clk 0:02:08]}  Rc6 {[%clk 0:00:39]} 33. Bxb7 {[%clk 0:02:07]}  Rxb7 {[%clk 0:00:31]} 34. Nxf4 {[%clk 0:02:07]} 1-0


[Site "https://www.chess.com"]